fUSD/lending_fUSD_20250426
["ID","MTS","AMOUNT","RATE_DAILY","PERIOD"]
[359109633,1745711445234,-400.0,0.00019972,2]
[359109634,1745711445245,-400.0,0.00019972,2]
[359109635,1745711445256,-400.0,0.00019972,2]
[359109636,1745711445266,-400.0,0.00019972,2]
[359109638,1745711445275,-400.0,0.00019972,2]
[359109639,1745711445285,-400.0,0.00019972,2]
[359109641,1745711445295,-400.0,0.00019972,2]
[359109643,1745711445304,-483.53,0.00019972,2]
[359109655,1745711445404,-400.0,0.00019972,2]
[359109657,1745711445413,-400.0,0.00019972,2]
[359109659,1745711445422,-400.0,0.00019972,2]
[359109661,1745711445432,-400.0,0.00019972,2]
[359109663,1745711445441,-469.05,0.00019972,2]
[359109665,1745711445451,-400.0,0.00019972,2]
[359109667,1745711445460,-567.68,0.00019972,2]
[359109669,1745711445469,-400.0,0.00019972,2]
[359109671,1745711445478,-400.0,0.00019972,2]
[359109673,1745711445487,-400.0,0.00019972,2]
[359109675,1745711445497,-400.0,0.00019972,2]
[359109677,1745711445506,-400.0,0.00019972,2]
[359109679,1745711445516,-400.0,0.00019972,2]
[359109681,1745711445525,-400.0,0.00019972,2]
[359109683,1745711445535,-400.0,0.00019972,2]
[359109685,1745711445544,-400.0,0.00019972,2]
[359109687,1745711445553,-473.13,0.00019972,2]
[359109689,1745711445562,-612.63,0.00019972,2]
[359109691,1745711445571,-400.0,0.00019972,2]
[359109693,1745711445580,-400.0,0.00019972,2]
[359109695,1745711445590,-400.0,0.00019972,2]
[359109697,1745711445599,-330.54468291,0.00019972,2]
[359109699,1745711445608,-400.0,0.00019972,2]
[359109701,1745711445617,-400.0,0.00019972,2]
[359109703,1745711445626,-400.0,0.00019972,2]
[359109705,1745711445635,-4035.47,0.00019972,2]
[359109707,1745711445645,-400.0,0.00019972,2]
[359109709,1745711445654,-400.0,0.00019972,2]
[359109710,1745711445663,-450.84,0.00019972,2]
[359109713,1745711445673,-250.0,0.00019972,2]
[359109715,1745711445683,-549.71,0.00019972,2]
[359109717,1745711445693,-539.33,0.00019972,2]
[359109718,1745711445702,-553.93,0.00019972,2]
[359109720,1745711445711,-400.0,0.00019972,2]
[359109723,1745711445721,-461.02,0.00019972,2]
[359109724,1745711445731,-400.0,0.00019972,2]
[359109726,1745711445740,-1773.52,0.00019972,2]
[359109728,1745711445749,-450.91,0.00019972,2]
[359109730,1745711445759,-400.0,0.00019972,2]
[359109732,1745711445768,-400.0,0.00019972,2]
[359109734,1745711445778,-400.0,0.00019972,2]
[359109737,1745711445787,-400.0,0.00019972,2]
[359109739,1745711445797,-400.0,0.00019972,2]
[359109741,1745711445807,-78238.74,0.00019972,2]
[359109743,1745711445816,-400.0,0.00019972,2]
[359109745,1745711445827,-400.0,0.00019972,2]
[359109747,1745711445840,-400.0,0.00019972,2]
[359109749,1745711445849,-400.0,0.00019972,2]
[359109751,1745711445859,-701.5,0.00019972,2]
[359109753,1745711445868,-8936.62,0.00019972,2]
[359109755,1745711445877,-498.68,0.00019972,2]
[359109757,1745711445886,-400.0,0.00019972,2]
[359109759,1745711445895,-501.0,0.00019972,2]
[359109761,1745711445905,-489.05,0.00019972,2]
[359109763,1745711445914,-4462.53,0.00019972,2]
[359109765,1745711445923,-400.0,0.00019972,2]
[359109767,1745711445933,-500.0,0.00019972,2]
[359109769,1745711445942,-400.0,0.00019972,2]
[359109771,1745711445951,-475.38,0.00019972,2]
[359109773,1745711445961,-88538.02,0.00019972,2]
[359109775,1745711445971,-1849.04,0.00019972,2]
[359109777,1745711445980,-400.0,0.00019972,2]
[359109779,1745711445989,-400.0,0.00019972,2]
[359109781,1745711445998,-782.38,0.00019972,2]
[359109782,1745711446008,-400.0,0.00019972,2]
[359109784,1745711446019,-215.28252671,0.00019972,2]
[359109786,1745711446030,-400.0,0.00019972,2]
[359109788,1745711446040,-510.59,0.00019972,2]
[359109790,1745711446050,-400.0,0.00019972,2]
[359109792,1745711446059,-400.0,0.00019972,2]
[359109794,1745711446068,-478.55,0.00019972,2]
[359109796,1745711446078,-758.85,0.00019972,2]
[359109798,1745711446087,-400.0,0.00019972,2]
[359109800,1745711446096,-832.81,0.00019972,2]
[359109802,1745711446105,-400.0,0.00019972,2]
[359109804,1745711446114,-2176.15,0.00019972,2]
[359109806,1745711446124,-535.31,0.00019972,2]
[359109808,1745711446134,-680.79,0.00019972,2]
[359109810,1745711446143,-400.0,0.00019972,2]
[359109812,1745711446152,-543.79,0.00019972,2]
[359109814,1745711446162,-400.0,0.00019972,2]
[359109816,1745711446172,-400.0,0.00019972,2]
[359109818,1745711446181,-1319.18,0.00019972,2]
[359109820,1745711446190,-400.0,0.00019972,2]
[359109822,1745711446199,-400.0,0.00019972,2]
[359109824,1745711446209,-400.0,0.00019972,2]
[359109826,1745711446218,-400.0,0.00019972,2]
[359109828,1745711446227,-400.0,0.00019972,2]
[359109830,1745711446236,-400.0,0.00019972,2]
[359109832,1745711446245,-400.0,0.00019972,2]
[359109834,1745711446254,-400.0,0.00019972,2]
[359109836,1745711446264,-400.0,0.00019972,2]
[359109838,1745711446273,-400.0,0.00019972,2]
[359109840,1745711446282,-400.0,0.00019972,2]
[359109842,1745711446291,-500.0,0.00019972,2]
[359109844,1745711446301,-400.0,0.00019972,2]
[359109846,1745711446310,-400.0,0.00019972,2]
[359109848,1745711446319,-400.0,0.00019972,2]
[359109849,1745711446328,-400.0,0.00019972,2]
[359109851,1745711446338,-400.0,0.00019972,2]
[359109853,1745711446347,-402.11,0.00019972,2]
[359109855,1745711446357,-512.46,0.00019972,2]
[359109857,1745711446366,-400.0,0.00019972,2]
[359109859,1745711446375,-400.0,0.00019972,2]
[359109861,1745711446384,-379.28087059,0.00019972,2]
[359109863,1745711446394,-527.91,0.00019972,2]
[359109865,1745711446404,-579.21,0.00019972,2]
[359109867,1745711446413,-809.59,0.00019972,2]
[359109869,1745711446422,-554.08,0.00019972,2]
[359109871,1745711446431,-400.0,0.00019972,2]
[359109873,1745711446441,-400.0,0.00019972,2]
[359109875,1745711446451,-600.51,0.00019972,2]
[359109877,1745711446460,-400.0,0.00019972,2]
[359109879,1745711446469,-750.36,0.00019972,2]
[359109880,1745711446479,-400.0,0.00019972,2]
[359109882,1745711446488,-400.0,0.00019972,2]
[359109884,1745711446497,-400.0,0.00019972,2]
[359109886,1745711446507,-400.0,0.00019972,2]
[359109888,1745711446516,-518.4,0.00019972,2]
[359109890,1745711446525,-489.51,0.00019972,2]
[359109892,1745711446534,-475.32,0.00019972,2]
[359109894,1745711446544,-400.0,0.00019972,2]
[359109896,1745711446555,-400.0,0.00019972,2]
[359109898,1745711446566,-400.0,0.00019972,2]
[359109900,1745711446576,-400.0,0.00019972,2]
[359109902,1745711446585,-674.9,0.00019972,2]
[359109904,1745711446595,-400.0,0.00019972,2]
[359109906,1745711446605,-574.14,0.00019972,2]
[359109908,1745711446614,-1127.39,0.00019972,2]
[359109910,1745711446623,-400.0,0.00019972,2]
[359109912,1745711446633,-723.18,0.00019972,2]
[359109914,1745711446642,-706.29,0.00019972,2]
[359109916,1745711446651,-459.1,0.00019972,2]
[359109918,1745711446661,-400.0,0.00019972,2]
[359109920,1745711446671,-522.96,0.00019972,2]
[359109922,1745711446680,-722.37,0.00019972,2]
[359109924,1745711446691,-505.2,0.00019972,2]
[359109926,1745711446701,-200.0,0.00019972,2]
[359109928,1745711446709,-400.0,0.00019972,2]
[359109929,1745711446719,-501.33,0.00019972,2]
[359109931,1745711446728,-463.81,0.00019972,2]
[359109933,1745711446737,-400.0,0.00019972,2]
[359109935,1745711446747,-542.17,0.00019972,2]
[359109937,1745711446756,-615.23,0.00019972,2]
[359109939,1745711446765,-523.55,0.00019972,2]
[359109941,1745711446775,-400.0,0.00019972,2]
[359109943,1745711446784,-458.1,0.00019972,2]
[359109945,1745711446794,-400.0,0.00019972,2]
[359109947,1745711446804,-507.32,0.00019972,2]
[359109949,1745711446814,-856.92,0.00019972,2]
[359109951,1745711446823,-510.91,0.00019972,2]
[359109953,1745711446835,-463.29,0.00019972,2]
[359109955,1745711446846,-400.0,0.00019972,2]
[359109957,1745711446856,-483.32,0.00019972,2]
[359109959,1745711446865,-400.0,0.00019972,2]
[359109961,1745711446874,-788.75,0.00019972,2]
[359109963,1745711446887,-400.0,0.00019972,2]
[359109965,1745711446896,-400.0,0.00019972,2]
[359109967,1745711446905,-400.0,0.00019972,2]
[359109969,1745711446916,-400.0,0.00019972,2]
[359109971,1745711446926,-400.0,0.00019972,2]
[359109973,1745711446935,-591.56,0.00019972,2]
[359109975,1745711446944,-400.0,0.00019972,2]
[359109977,1745711446954,-2131.63,0.00019972,2]
[359109979,1745711446964,-400.0,0.00019972,2]
[359109980,1745711446973,-457.49,0.00019972,2]
[359109982,1745711446983,-400.0,0.00019972,2]
[359109985,1745711446992,-428.67,0.00019972,2]
[359109987,1745711447002,-400.0,0.00019972,2]
[359109988,1745711447011,-532.66,0.00019972,2]
[359109990,1745711447020,-2356.04,0.00019972,2]
[359109992,1745711447029,-400.0,0.00019972,2]
[359109994,1745711447039,-500.0,0.00019972,2]
[359109997,1745711447048,-400.0,0.00019972,2]
[359109998,1745711447057,-850.16,0.00019972,2]
[359110001,1745711447067,-402.88,0.00019972,2]
[359110003,1745711447076,-5242.73,0.00019972,2]
[359110005,1745711447086,-724.2,0.00019972,2]
[359110007,1745711447095,-453.6,0.00019972,2]
[359110009,1745711447105,-400.0,0.00019972,2]
[359110011,1745711447114,-600.43,0.00019972,2]
[359110013,1745711447123,-856.03,0.00019972,2]
[359110015,1745711447134,-400.0,0.00019972,2]
[359110016,1745711447143,-400.0,0.00019972,2]
[359110018,1745711447153,-400.0,0.00019972,2]
[359110020,1745711447162,-400.0,0.00019972,2]
[359110022,1745711447172,-586.04,0.00019972,2]
[359110024,1745711447181,-400.0,0.00019972,2]
[359110027,1745711447191,-400.0,0.00019972,2]
[359110028,1745711447201,-400.0,0.00019972,2]
[359110030,1745711447210,-400.0,0.00019972,2]
[359110033,1745711447220,-400.0,0.00019972,2]
[359110035,1745711447229,-485.42237105,0.00019972,2]
[359110037,1745711447239,-462.76,0.00019972,2]
[359110039,1745711447248,-424.27,0.00019972,2]
[359110041,1745711447258,-440.89,0.00019972,2]
[359110043,1745711447267,-562.01,0.00019972,2]
[359110045,1745711447277,-593.84,0.00019972,2]
[359110046,1745711447286,-200.0,0.00019972,2]
[359110048,1745711447295,-631.98009462,0.00019973,2]
[359110051,1745711447305,-500.0,0.00019973,2]
[359110053,1745711447315,-500.0,0.00019973,2]
[359110055,1745711447325,-500.0,0.00019973,2]
[359110057,1745711447334,-187.0,0.00019973,2]
[359110059,1745711447344,-500.0,0.00019973,2]
[359110061,1745711447353,-500.0,0.00019973,2]
[359110063,1745711447363,-400.0,0.00019973,2]
[359110064,1745711447373,-400.0,0.00019973,2]
[359110066,1745711447384,-683.96,0.00019973,2]
[359110068,1745711447394,-505.25,0.00019973,2]
[359110070,1745711447404,-400.0,0.00019973,2]
[359110072,1745711447413,-400.0,0.00019973,2]
[359110074,1745711447423,-400.0,0.00019973,2]
[359110076,1745711447433,-400.0,0.00019973,2]
[359110078,1745711447442,-400.0,0.00019973,2]
[359110080,1745711447452,-400.0,0.00019973,2]
[359110082,1745711447461,-400.0,0.00019973,2]
[359110084,1745711447471,-400.0,0.00019973,2]
[359110086,1745711447480,-400.0,0.00019973,2]
[359110088,1745711447490,-496.68,0.00019973,2]
[359110090,1745711447500,-445.18,0.00019973,2]
[359110092,1745711447510,-400.0,0.00019973,2]
[359110094,1745711447519,-400.0,0.00019973,2]
[359110096,1745711447529,-435.51,0.00019973,2]
[359110098,1745711447539,-456.91424638,0.00019973,2]
[359110100,1745711447548,-400.0,0.00019973,2]
[359110102,1745711447558,-400.0,0.00019973,2]
[359110104,1745711447568,-400.0,0.00019973,2]
[359110106,1745711447578,-400.0,0.00019973,2]
[359110108,1745711447588,-408.42,0.00019973,2]
[359110110,1745711447597,-400.0,0.00019973,2]
[359110112,1745711447608,-614.32,0.00019973,2]
[359110114,1745711447618,-400.0,0.00019973,2]
[359110116,1745711447628,-400.0,0.00019973,2]
[359110118,1745711447639,-400.0,0.00019973,2]
[359110120,1745711447649,-400.0,0.00019973,2]
[359110122,1745711447659,-565.38,0.00019973,2]
[359110124,1745711447669,-400.0,0.00019973,2]
[359110126,1745711447678,-400.0,0.00019973,2]
[359110128,1745711447689,-400.0,0.00019973,2]
[359110130,1745711447699,-400.0,0.00019973,2]
[359110132,1745711447710,-400.0,0.00019973,2]
[359110134,1745711447720,-400.0,0.00019973,2]
[359110136,1745711447730,-621.8,0.00019973,2]
[359110138,1745711447739,-400.0,0.00019973,2]
[359110140,1745711447750,-435.36,0.00019973,2]
[359110142,1745711447761,-400.0,0.00019973,2]
[359110145,1745711447771,-400.0,0.00019973,2]
[359110147,1745711447781,-400.0,0.00019973,2]
[359110149,1745711447792,-400.0,0.00019973,2]
[359110151,1745711447802,-400.0,0.00019973,2]
[359110153,1745711447812,-400.0,0.00019973,2]
[359110155,1745711447822,-400.0,0.00019973,2]
[359110157,1745711447831,-400.0,0.00019973,2]
[359110159,1745711447843,-400.0,0.00019973,2]
[359110160,1745711447854,-400.0,0.00019973,2]
[359110161,1745711447864,-400.0,0.00019973,2]
[359110162,1745711447874,-400.0,0.00019973,2]
[359110163,1745711447883,-419.31,0.00019973,2]
[359110164,1745711447894,-667.47,0.00019973,2]
[359110165,1745711447904,-400.0,0.00019973,2]
[359110166,1745711447914,-400.0,0.00019973,2]
[359110167,1745711447924,-648.71,0.00019973,2]
[359110168,1745711447935,-744.3,0.00019973,2]
[359110169,1745711447945,-422.31,0.00019973,2]
[359110170,1745711447956,-400.0,0.00019973,2]
[359110171,1745711447966,-400.0,0.00019973,2]
[359110172,1745711447976,-400.0,0.00019973,2]
[359110174,1745711447986,-400.0,0.00019973,2]
[359110176,1745711447997,-400.0,0.00019973,2]
[359110178,1745711448006,-400.0,0.00019973,2]
[359110180,1745711448016,-400.0,0.00019973,2]
[359110182,1745711448027,-445.3,0.00019973,2]
[359110184,1745711448036,-400.0,0.00019973,2]
[359110185,1745711448046,-523.55,0.00019973,2]
[359110186,1745711448056,-495.5,0.00019973,2]
[359110187,1745711448066,-400.0,0.00019973,2]
[359110188,1745711448076,-400.0,0.00019973,2]
[359110189,1745711448086,-421.2,0.00019973,2]
[359110190,1745711448097,-400.0,0.00019973,2]
[359110191,1745711448107,-1156.26,0.00019973,2]
[359110193,1745711448117,-400.0,0.00019973,2]
[359110195,1745711448127,-400.0,0.00019973,2]
[359110197,1745711448138,-400.0,0.00019973,2]
[359110199,1745711448148,-400.0,0.00019973,2]
[359110201,1745711448158,-572.91,0.00019973,2]
[359110203,1745711448168,-400.0,0.00019973,2]
[359110205,1745711448178,-400.0,0.00019973,2]
[359110207,1745711448188,-400.0,0.00019973,2]
[359110209,1745711448198,-400.0,0.00019973,2]
[359110211,1745711448208,-400.0,0.00019973,2]
[359110213,1745711448218,-400.0,0.00019973,2]
[359110215,1745711448228,-400.0,0.00019973,2]
[359110217,1745711448237,-400.0,0.00019973,2]
[359110219,1745711448247,-400.0,0.00019973,2]
[359110221,1745711448256,-400.0,0.00019973,2]
[359110223,1745711448267,-1285.13,0.00019973,2]
[359110225,1745711448277,-570.34,0.00019973,2]
[359110227,1745711448287,-345.38205614,0.00019973,2]
[359110229,1745711448296,-500.0,0.00019973,2]
[359110231,1745711448306,-400.0,0.00019973,2]
[359110233,1745711448316,-400.0,0.00019973,2]
[359110235,1745711448325,-347.20069486,0.00019973,2]
[359110237,1745711448335,-400.0,0.00019973,2]
[359110239,1745711448345,-400.0,0.00019973,2]
[359110241,1745711448354,-400.0,0.00019973,2]
[359110243,1745711448364,-400.0,0.00019973,2]
[359110245,1745711448373,-400.0,0.00019973,2]
[359110247,1745711448383,-428.98,0.00019973,2]
[359110249,1745711448394,-694.77,0.00019973,2]
[359110251,1745711448404,-629.38,0.00019973,2]
[359110253,1745711448414,-400.0,0.00019973,2]
[359110255,1745711448424,-400.0,0.00019973,2]
[359110257,1745711448435,-1441.16,0.00019973,2]
[359110258,1745711448444,-157.05846554,0.00019973,2]
[359110259,1745711448454,-425.41,0.00019973,2]
[359110260,1745711448464,-400.0,0.00019973,2]
[359110261,1745711448474,-495.41,0.00019973,2]
[359110262,1745711448484,-560.86,0.00019973,2]
[359110263,1745711448495,-400.0,0.00019973,2]
[359110264,1745711448505,-400.0,0.00019973,2]
[359110265,1745711448516,-400.0,0.00019973,2]
[359110266,1745711448526,-412.52,0.00019973,2]
[359110267,1745711448535,-493.67,0.00019973,2]
[359110268,1745711448544,-500.0,0.00019973,2]
[359110269,1745711448554,-400.0,0.00019973,2]
[359110270,1745711448566,-400.0,0.00019973,2]
[359110271,1745711448576,-400.0,0.00019973,2]
[359110273,1745711448586,-500.0,0.00019973,2]
[359110275,1745711448596,-400.0,0.00019973,2]
[359110277,1745711448606,-400.0,0.00019973,2]
[359110279,1745711448616,-645.95,0.00019973,2]
[359110281,1745711448626,-275.11030669,0.00019973,2]
[359110283,1745711448636,-427.87,0.00019973,2]
[359110285,1745711448647,-536.48,0.00019973,2]
[359110287,1745711448657,-483.62,0.00019973,2]
[359110289,1745711448666,-400.0,0.00019973,2]
[359110292,1745711448677,-400.0,0.00019973,2]
[359110294,1745711448687,-452.39,0.00019973,2]
[359110296,1745711448696,-400.0,0.00019973,2]
[359110298,1745711448706,-400.0,0.00019973,2]
[359110300,1745711448716,-400.0,0.00019973,2]
[359110302,1745711448726,-400.0,0.00019973,2]
[359110304,1745711448736,-400.0,0.00019973,2]
[359110306,1745711448746,-500.0,0.00019973,2]
[359110308,1745711448755,-400.0,0.00019973,2]
[359110310,1745711448765,-400.0,0.00019973,2]
[359110312,1745711448775,-400.0,0.00019973,2]
[359110314,1745711448785,-400.0,0.00019973,2]
[359110316,1745711448794,-445.82,0.00019973,2]
[359110318,1745711448804,-400.0,0.00019973,2]
[359110320,1745711448814,-517.47,0.00019973,2]
[359110322,1745711448823,-402.40456391,0.00019973,2]
[359110324,1745711448834,-400.0,0.00019973,2]
[359110326,1745711448845,-2784.41,0.00019973,2]
[359110328,1745711448856,-524.77,0.00019973,2]
[359110330,1745711448866,-500.0,0.00019973,2]
[359110332,1745711448875,-400.0,0.00019973,2]
[359110334,1745711448887,-400.0,0.00019973,2]
[359110336,1745711448897,-505.03,0.00019973,2]
[359110338,1745711448907,-459.97549695,0.00019973,2]
[359110340,1745711448917,-499.48,0.00019973,2]
[359110342,1745711448928,-400.0,0.00019973,2]
[359110344,1745711448938,-607.09,0.00019973,2]
[359110346,1745711448947,-400.0,0.00019973,2]
[359110348,1745711448957,-1474.52,0.00019973,2]
[359110350,1745711448967,-400.0,0.00019973,2]
[359110352,1745711448977,-400.0,0.00019973,2]
[359110354,1745711448987,-627.24,0.00019973,2]
[359110356,1745711448997,-584.33,0.00019973,2]
[359110358,1745711449007,-400.0,0.00019973,2]
[359110360,1745711449016,-400.0,0.00019973,2]
[359110362,1745711449026,-400.0,0.00019973,2]
[359110364,1745711449036,-400.0,0.00019973,2]
[359110366,1745711449046,-400.0,0.00019973,2]
[359110368,1745711449056,-400.0,0.00019973,2]
[359110370,1745711449066,-400.0,0.00019973,2]
[359110372,1745711449076,-400.0,0.00019973,2]
[359110374,1745711449085,-300.0,0.00019973,2]
[359110376,1745711449095,-400.0,0.00019973,2]
[359110378,1745711449106,-411.48,0.00019973,2]
[359110381,1745711449117,-442.95,0.00019973,2]
[359110382,1745711449127,-262.3,0.00019973,2]
[359110385,1745711449137,-608.65,0.00019973,2]
[359110387,1745711449148,-400.0,0.00019973,2]
[359110389,1745711449160,-400.0,0.00019973,2]
[359110391,1745711449170,-400.0,0.00019973,2]
[359110393,1745711449180,-400.0,0.00019973,2]
[359110395,1745711449191,-531.68,0.00019973,2]
[359110397,1745711449201,-740.15,0.00019973,2]
[359110399,1745711449212,-400.0,0.00019973,2]
[359110401,1745711449222,-400.0,0.00019973,2]
[359110403,1745711449233,-400.0,0.00019973,2]
[359110405,1745711449244,-795.74,0.00019973,2]
[359110407,1745711449254,-400.0,0.00019973,2]
[359110409,1745711449264,-400.0,0.00019973,2]
[359110411,1745711449275,-400.0,0.00019973,2]
[359110413,1745711449285,-276.35282032,0.00019973,2]
[359110415,1745711449296,-400.0,0.00019973,2]
[359110417,1745711449306,-400.0,0.00019973,2]
[359110420,1745711449316,-400.0,0.00019973,2]
[359110422,1745711449326,-400.0,0.00019973,2]
[359110424,1745711449335,-499.61,0.00019973,2]
[359110426,1745711449346,-681.38,0.00019973,2]
[359110428,1745711449356,-610.59,0.00019973,2]
[359110430,1745711449366,-500.0,0.00019973,2]
[359110432,1745711449376,-500.0,0.00019973,2]
[359110434,1745711449386,-400.0,0.00019973,2]
[359110436,1745711449397,-400.0,0.00019973,2]
[359110438,1745711449407,-400.0,0.00019973,2]
[359110440,1745711449417,-400.0,0.00019973,2]
[359110442,1745711449428,-500.0,0.00019973,2]
[359110444,1745711449438,-400.0,0.00019973,2]
[359110446,1745711449448,-500.0,0.00019973,2]
[359110448,1745711449458,-400.0,0.00019973,2]
[359110450,1745711449468,-400.0,0.00019973,2]
[359110452,1745711449479,-400.0,0.00019973,2]
[359110454,1745711449489,-200.0,0.00019973,2]
[359110456,1745711449499,-516.06581984,0.00019973,2]
[359110458,1745711449509,-500.0,0.00019973,2]
[359110460,1745711449519,-627.22,0.00019973,2]
[359110463,1745711449529,-400.0,0.00019973,2]
[359110465,1745711449540,-400.0,0.00019973,2]
[359110467,1745711449550,-662.85,0.00019973,2]
[359110469,1745711449560,-400.0,0.00019973,2]
[359110471,1745711449570,-508.52303962,0.00019973,2]
[359110473,1745711449580,-400.0,0.00019973,2]
[359110475,1745711449591,-600.3,0.00019973,2]
[359110477,1745711449601,-400.0,0.00019973,2]
[359110479,1745711449611,-400.0,0.00019973,2]
[359110481,1745711449621,-400.0,0.00019973,2]
[359110483,1745711449631,-400.0,0.00019973,2]
[359110485,1745711449641,-3462.36,0.00019973,2]
[359110487,1745711449652,-486.76311795,0.00019973,2]
[359110489,1745711449662,-424.95,0.00019973,2]
[359110492,1745711449673,-750.72,0.00019973,2]
[359110494,1745711449683,-500.0,0.00019973,2]
[359110496,1745711449693,-400.0,0.00019973,2]
[359110498,1745711449704,-579.31,0.00019973,2]
[359110500,1745711449715,-460.98,0.00019973,2]
[359110502,1745711449727,-736.63,0.00019973,2]
[359110504,1745711449737,-400.0,0.00019973,2]
[359110506,1745711449748,-400.0,0.00019973,2]
[359110508,1745711449759,-400.0,0.00019973,2]
[359110533,1745711449999,-400.0,0.00019973,2]
[359110535,1745711450011,-458.52,0.00019973,2]
[359110537,1745711450021,-400.0,0.00019973,2]
[359110539,1745711450031,-400.0,0.00019973,2]
[359110541,1745711450041,-400.0,0.00019973,2]
[359110543,1745711450051,-487.91,0.00019973,2]
[359110546,1745711450061,-486.21,0.00019973,2]
[359110548,1745711450071,-400.0,0.00019973,2]
[359110550,1745711450081,-936.75,0.00019973,2]
[359110552,1745711450091,-400.0,0.00019973,2]
[359110554,1745711450100,-400.0,0.00019973,2]
[359110556,1745711450110,-400.0,0.00019973,2]
[359110557,1745711450121,-551.01,0.00019973,2]
[359110560,1745711450131,-400.0,0.00019973,2]
[359110562,1745711450141,-400.0,0.00019973,2]
[359110563,1745711450150,-671.65,0.00019973,2]
[359110565,1745711450160,-400.0,0.00019973,2]
[359110567,1745711450170,-701.61,0.00019973,2]
[359110570,1745711450181,-429.78,0.00019973,2]
[359110572,1745711450190,-649.43,0.00019973,2]
[359110574,1745711450200,-212.45001774,0.00019976,2]
[359110576,1745711450210,-500.0,0.00019984,2]
[359110578,1745711450220,-500.0,0.00019984,2]
[359110580,1745711450230,-500.0,0.00019984,2]
[359110581,1745711450240,-500.0,0.00019984,2]
[359110583,1745711450250,-500.0,0.00019984,2]
[359110586,1745711450260,-500.0,0.00019984,2]
[359110588,1745711450269,-250.46,0.00019984,2]
[359110590,1745711450279,-151.0,0.00019985,2]
[359110592,1745711450288,-151.0,0.00019985,2]
[359110594,1745711450298,-218.568782,0.00019985,2]
[359110596,1745711450308,-218.568782,0.00019985,2]
[359110598,1745711450318,-500.0,0.00019985,2]
[359110600,1745711450328,-500.0,0.00019985,2]
[359110602,1745711450338,-500.0,0.00019985,2]
[359110604,1745711450349,-500.0,0.00019985,2]
[359110606,1745711450359,-500.0,0.00019985,2]
[359110608,1745711450369,-500.0,0.00019985,2]
[359110610,1745711450379,-500.0,0.00019985,2]
[359110612,1745711450389,-500.0,0.00019985,2]
[359110614,1745711450399,-500.0,0.00019985,2]
[359110616,1745711450409,-500.0,0.00019985,2]
[359110618,1745711450419,-151.0,0.00019986,2]
[359110620,1745711450429,-249.071769,0.00019986,2]
[359110622,1745711450439,-218.568782,0.00019986,2]
[359110624,1745711450448,-218.568782,0.00019986,2]
[359110626,1745711450458,-132257.9741126,0.00019986,2]
[359110628,1745711450468,-4111.0450409,0.00019986,2]